bitfinex/quotes_BTCUSD_20251029
["timestamp","ask_amount","ask_price","bid_price","bid_amount"]
[1761747291366,19.28324227,112840.0,112830.0,0.75021657]
[1761747291583,19.28324227,112840.0,112830.0,0.76021656]
[1761747292031,19.28324227,112840.0,112830.0,0.75021657]
[1761747295610,19.28324227,112840.0,112830.0,0.76021656]
[1761747296271,19.28324227,112840.0,112830.0,1.33526488]
[1761747296715,19.28324227,112840.0,112830.0,1.34526487]
[1761747296919,19.28324227,112840.0,112830.0,0.77021655]
[1761747297158,19.28324227,112840.0,112830.0,1.34526487]
[1761747297571,19.28324227,112840.0,112830.0,1.34326487]
[1761747297752,19.28324227,112840.0,112830.0,0.76821655]
[1761747298012,19.28324227,112840.0,112830.0,0.77121655]
[1761747298230,19.28324227,112840.0,112830.0,0.76421655]
[1761747298667,19.28324227,112840.0,112830.0,0.77121655]
[1761747298873,19.28324227,112840.0,112830.0,1.34626487]
[1761747299498,19.28324227,112840.0,112830.0,0.77121655]
[1761747300756,19.28324227,112840.0,112830.0,0.76121656]
[1761747301396,19.28324227,112840.0,112830.0,1.34626487]
[1761747302057,19.28324227,112840.0,112830.0,3.34626487]
[1761747302263,19.28324227,112840.0,112830.0,1.34626487]
[1761747302898,19.28324227,112840.0,112830.0,0.77121655]
[1761747303120,19.28324227,112840.0,112830.0,0.71503429]
[1761747303345,19.85829059,112840.0,112830.0,0.34840684]
[1761747303636,19.85829059,112840.0,112830.0,0.17895901]
[1761747303851,19.85829059,112840.0,112830.0,0.12999901]
[1761747304061,19.85829059,112840.0,112830.0,0.12699901]
[1761747304277,19.85829059,112840.0,112830.0,0.17662901]
[1761747304483,19.85829059,112840.0,112830.0,0.35588683]
[1761747304899,19.85829059,112840.0,112830.0,0.34888683]
[1761747305323,19.28324227,112840.0,112830.0,0.38906911]
[1761747305753,19.28324227,112840.0,112830.0,0.38506911]
[1761747306185,19.28324227,112840.0,112830.0,0.38606911]
[1761747307223,19.28324227,112840.0,112830.0,0.38806911]
[1761747313053,19.28324227,112840.0,112830.0,0.35188683]
[1761747313263,19.28324227,112840.0,112830.0,0.38806911]
[1761747313691,19.28324227,112840.0,112830.0,0.37502911]
[1761747314836,19.28324227,112840.0,112830.0,0.95007743]
[1761747315233,19.28324227,112840.0,112830.0,0.37502911]
[1761747315439,19.28324227,112840.0,112830.0,0.77981259]
[1761747326928,19.28324227,112840.0,112830.0,0.37502911]
[1761747327135,19.68802575,112840.0,112830.0,0.37502911]
[1761747327547,19.28324227,112840.0,112830.0,0.37502911]
[1761747328819,19.28324227,112840.0,112830.0,0.77981259]
[1761747330135,19.28324227,112840.0,112830.0,0.37502911]
[1761747330952,19.28324227,112840.0,112830.0,0.77981259]
[1761747336842,19.28324227,112840.0,112830.0,0.82191259]
[1761747337263,19.28324227,112840.0,112830.0,1.17191258]
[1761747341230,19.28324227,112840.0,112830.0,1.61332776]
[1761747341697,19.28324227,112840.0,112830.0,1.19854429]
[1761747341907,19.28324227,112840.0,112830.0,1.20854428]
[1761747342113,19.28324227,112840.0,112830.0,1.20554428]
[1761747342532,19.28324227,112840.0,112830.0,1.21154428]
[1761747342951,19.28324227,112840.0,112830.0,1.22654428]
[1761747343175,19.28324227,112840.0,112830.0,1.22954428]
[1761747345213,19.28324227,112840.0,112830.0,1.21954429]
[1761747346264,19.28324227,112840.0,112830.0,0.80476082]
[1761747346479,19.28324227,112840.0,112830.0,0.46176082]
[1761747346688,19.28324227,112840.0,112830.0,0.43512911]
[1761747346895,19.28324227,112840.0,112830.0,0.83991259]
[1761747347339,19.28324227,112840.0,112830.0,0.84191259]
[1761747348013,19.28324227,112840.0,112830.0,0.83391259]
[1761747348216,19.28324227,112840.0,112830.0,0.83991259]
[1761747349495,19.28324227,112840.0,112830.0,0.43512911]
[1761747350389,19.28318023,112840.0,112830.0,0.43512911]
[1761747351269,19.28318023,112840.0,112830.0,0.83993536]
[1761747352387,19.28318023,112840.0,112830.0,0.43512911]
[1761747353527,19.28318023,112840.0,112830.0,0.83993536]
[1761747356143,19.28318023,112840.0,112830.0,0.43512911]
[1761747358979,19.28318023,112840.0,112830.0,0.83993536]
[1761747360412,19.28318023,112840.0,112830.0,1.18993535]
[1761747360841,19.28318023,112840.0,112830.0,0.42557714]
[1761747361052,19.28318023,112840.0,112830.0,0.43512911]
[1761747361697,19.28318023,112840.0,112830.0,0.42912911]
[1761747361929,19.28318023,112840.0,112830.0,0.43312911]
[1761747362142,19.28318023,112840.0,112830.0,0.43112911]
[1761747362581,19.28318023,112840.0,112830.0,0.43312911]
[1761747363678,19.68798648,112840.0,112830.0,0.39694683]
[1761747363892,19.68798648,112840.0,112830.0,0.43312911]
[1761747365459,19.68798648,112840.0,112830.0,0.25587129]
[1761747365675,19.68798648,112840.0,112830.0,0.43312911]
[1761747366132,19.28318023,112840.0,112830.0,0.43312911]
[1761747366276,19.68798648,112840.0,112830.0,0.43312911]
[1761747366501,19.28318023,112840.0,112830.0,0.43312911]
[1761747370231,19.28318023,112840.0,112830.0,0.43212911]
[1761747372592,19.28318023,112840.0,112830.0,0.83693536]
[1761747373034,19.28318023,112840.0,112830.0,0.43212911]
[1761747375943,19.08618148,112840.0,112830.0,0.43212911]
[1761747382269,19.08618148,112840.0,112830.0,0.83693536]
[1761747382696,19.08618148,112840.0,112830.0,0.43212911]
[1761747383501,19.08618148,112840.0,112830.0,0.45876087]
[1761747385334,19.08618148,112840.0,112830.0,0.43212911]
[1761747385990,19.08618148,112840.0,112830.0,0.42168911]
[1761747386207,19.49098773,112840.0,112830.0,0.42168911]
[1761747386409,19.49098773,112840.0,112830.0,0.20824901]
[1761747386629,19.51526773,112840.0,112830.0,0.15861901]
[1761747387079,19.56097773,112840.0,112830.0,0.08633901]
[1761747387494,19.56097773,112840.0,112830.0,0.26359683]
[1761747387703,19.51526773,112840.0,112830.0,0.29389683]
[1761747388342,19.51526773,112840.0,112830.0,0.11463901]
[1761747388554,19.78232885,112840.0,112830.0,0.11063901]
[1761747388780,19.82803885,112840.0,112830.0,0.08233901]
[1761747389007,19.73821984,112840.0,112830.0,0.08533901]
[1761747389220,20.48302609,112840.0,112830.0,0.015]
[1761747389648,20.48302609,112840.0,112830.0,0.017]
[1761747390067,20.48302609,112840.0,112830.0,0.015]
[1761747390487,20.5728451,112840.0,112830.0,0.015]
[1761747391376,20.16803885,112840.0,112830.0,0.015]
[1761747391791,20.16803885,112840.0,112830.0,0.016]
[1761747393122,20.07821984,112840.0,112830.0,0.016]
[1761747393982,20.48302609,112840.0,112830.0,0.016]
[1761747395946,22.48302609,112840.0,112830.0,0.016]
[1761747396188,22.30232131,112840.0,112830.0,0.016]
[1761747399109,22.30232131,112840.0,112820.0,1e-08]
[1761747399110,0.51725782,112830.0,112820.0,1e-08]
[1761747399341,2.51732068,112790.0,112780.0,0.004]
[1761747399567,3.42281318,112790.0,112780.0,0.004]
[1761747399784,3.47415869,112790.0,112780.0,0.004]
[1761747400054,3.5639777,112790.0,112780.0,0.004]
[1761747400312,3.59063542,112790.0,112780.0,0.004]
[1761747400554,3.56447256,112790.0,112780.0,0.004]
[1761747400805,3.53781484,112790.0,112780.0,0.004]
[1761747401485,3.65384512,112790.0,112780.0,0.004]
[1761747402371,3.85384512,112790.0,112780.0,0.004]
[1761747402634,3.86334691,112790.0,112780.0,0.004]
[1761747403731,3.8733469,112790.0,112780.0,0.004]
[1761747404001,3.89301794,112790.0,112780.0,0.004]
[1761747404222,3.6130014,112790.0,112780.0,0.004]
[1761747404441,3.67786865,112790.0,112780.0,0.004]
[1761747405353,3.20819515,112790.0,112780.0,0.004]
[1761747405815,2.68855713,112790.0,112780.0,0.004]
[1761747406734,3.02755713,112790.0,112780.0,0.004]
[1761747407201,2.68855713,112790.0,112780.0,0.004]
[1761747407659,2.69255713,112790.0,112780.0,0.004]
[1761747408146,3.02855713,112790.0,112780.0,0.004]
[1761747408397,0.0115502,112790.0,112780.0,0.34921541]
[1761747408580,0.41635645,112790.0,112780.0,0.17187901]
[1761747408843,0.41635645,112790.0,112780.0,0.34921541]
[1761747409079,0.41535645,112790.0,112780.0,0.34921541]
[1761747409304,0.0105502,112790.0,112780.0,0.34921541]
[1761747409993,4.841e-05,112790.0,112780.0,0.38539769]
[1761747410461,4.841e-05,112790.0,112780.0,0.38739769]
[1761747411106,4.841e-05,112790.0,112780.0,0.38839769]
[1761747411539,4.841e-05,112790.0,112780.0,0.39239769]
[1761747415362,0.57565079,112790.0,112780.0,0.39239769]
[1761747417873,0.57565079,112790.0,112780.0,0.21506129]
[1761747418299,0.57565079,112790.0,112780.0,0.39239769]
[1761747418510,0.60875079,112790.0,112780.0,0.16975129]
[1761747419315,0.63881079,112790.0,112780.0,0.13356901]
[1761747419517,0.81613147,112790.0,112780.0,0.13356901]
[1761747420097,0.81613147,112790.0,112780.0,0.10081901]
[1761747420367,0.84919883,112790.0,112780.0,0.10081901]
[1761747420483,0.86281147,112790.0,112780.0,0.10081901]
[1761747420916,1.20281147,112790.0,112780.0,0.011]
[1761747421174,1.20281147,112790.0,112780.0,0.01]
[1761747421371,1.20281147,112790.0,112780.0,0.004]
[1761747421737,0.58052909,112790.0,112780.0,0.03875]
[1761747421924,1.15613147,112790.0,112780.0,0.03875]
[1761747422154,1.15613147,112790.0,112780.0,0.03675]
[1761747422377,1.20281147,112790.0,112780.0,0.004]
[1761747422943,1.20381147,112790.0,112780.0,0.004]
[1761747423155,3.29363048,112790.0,112780.0,0.005]
[1761747424000,3.29363048,112790.0,112780.0,0.004]
[1761747424272,3.38344949,112790.0,112780.0,0.005]
[1761747424473,3.40932071,112790.0,112780.0,0.005]
[1761747424682,3.4769325,112790.0,112780.0,0.005]
[1761747424896,3.50037163,112790.0,112780.0,0.004]
[1761747425279,3.50037163,112790.0,112780.0,0.005]
[1761747425280,3.50037041,112790.0,112780.0,0.005]
[1761747425759,3.50037041,112790.0,112780.0,0.004]
[1761747425972,3.47623617,112790.0,112780.0,0.004]
[1761747426388,3.50037041,112790.0,112780.0,0.004]
[1761747426591,3.53161161,112790.0,112780.0,0.004]
[1761747427226,3.73161161,112790.0,112780.0,0.004]
[1761747427852,3.70817248,112790.0,112780.0,0.004]
[1761747428055,0.17738359,112750.0,112740.0,0.004]
[1761747428262,0.81761433,112750.0,112740.0,0.004]
[1761747428467,0.86297433,112750.0,112740.0,0.004]
[1761747428625,0.84523597,112750.0,112740.0,0.004]
[1761747429199,0.84528435,112750.0,112740.0,0.004]
[1761747429821,0.84528435,112750.0,112740.0,0.005]
[1761747430770,0.84528435,112750.0,112740.0,0.006]
[1761747431360,0.93510336,112750.0,112740.0,0.006]
[1761747433202,0.84528435,112750.0,112740.0,0.006]
[1761747433416,0.79992435,112750.0,112740.0,0.006]
[1761747433590,0.62254076,112750.0,112740.0,0.08298]
[1761747433783,0.79992435,112750.0,112740.0,0.08298]
[1761747434152,0.78078435,112750.0,112740.0,0.08298]
[1761747434302,0.81283435,112750.0,112740.0,0.08298]
[1761747434502,0.81283435,112750.0,112740.0,0.03636]
[1761747434936,0.23723197,112750.0,112740.0,0.03636]
[1761747435146,0.63545076,112750.0,112740.0,0.03636]
[1761747435500,0.63545076,112750.0,112740.0,0.30357833]
[1761747435710,4.838e-05,112750.0,112740.0,0.35019833]
[1761747436587,4.838e-05,112750.0,112740.0,0.38638061]
[1761747438009,4.838e-05,112750.0,112740.0,0.96198299]
[1761747438242,4.838e-05,112750.0,112740.0,1.30098299]
[1761747438450,4.838e-05,112750.0,112740.0,1.31098298]
[1761747438654,4.838e-05,112750.0,112740.0,1.32098297]
[1761747438827,4.838e-05,112750.0,112740.0,1.31998297]
[1761747439366,4.838e-05,112750.0,112740.0,1.31698298]
[1761747439747,4.838e-05,112750.0,112740.0,0.74238061]
[1761747439963,4.838e-05,112750.0,112740.0,0.40238061]
[1761747440185,4.838e-05,112750.0,112740.0,0.38438061]
[1761747440523,4.838e-05,112750.0,112740.0,0.40038061]
[1761747441181,4.838e-05,112750.0,112740.0,0.39738061]
[1761747441391,4.838e-05,112750.0,112740.0,0.39938061]
[1761747441599,4.838e-05,112750.0,112740.0,0.97498299]
[1761747441831,4.838e-05,112750.0,112740.0,0.38638061]
[1761747442254,4.838e-05,112750.0,112740.0,0.39438061]
[1761747443258,4.838e-05,112750.0,112740.0,0.96998299]
[1761747443439,4.838e-05,112750.0,112740.0,0.39438061]
[1761747448092,4.838e-05,112750.0,112740.0,1.31998298]
[1761747450598,4.838e-05,112750.0,112740.0,0.7443806]
[1761747450876,4.838e-05,112750.0,112740.0,1.34663179]
[1761747451087,4.838e-05,112750.0,112740.0,1.3366318]
[1761747451288,4.838e-05,112750.0,112740.0,1.34663179]
[1761747452517,4.838e-05,112750.0,112740.0,0.7443806]
[1761747452731,4.838e-05,112750.0,112740.0,0.4043806]
[1761747453408,4.838e-05,112750.0,112740.0,0.35819833]
[1761747453931,4.838e-05,112750.0,112740.0,0.39438061]
[1761747459891,0.57565076,112750.0,112740.0,0.39438061]
[1761747460316,0.57565076,112750.0,112740.0,0.38602061]
[1761747460533,0.60753076,112750.0,112740.0,0.33940061]
[1761747460739,0.57565076,112750.0,112740.0,0.33740061]
[1761747460950,0.57565076,112750.0,112740.0,0.38675061]
[1761747461206,0.57565076,112750.0,112740.0,0.37975061]
[1761747461411,0.63790076,112750.0,112740.0,0.33040061]
[1761747461619,0.03041838,112750.0,112740.0,0.33740061]
[1761747461834,0.60702076,112750.0,112740.0,0.38675061]
[1761747462531,0.63890076,112750.0,112740.0,0.33740061]
[1761747462747,0.60702076,112750.0,112740.0,0.33740061]
[1761747464471,0.60702076,112750.0,112740.0,0.38675061]
[1761747464679,0.00104838,112750.0,112740.0,0.38675061]
[1761747464883,0.57665076,112750.0,112740.0,0.38675061]
[1761747465122,0.60853076,112750.0,112740.0,0.33740061]
[1761747465332,0.57665076,112750.0,112740.0,0.38675061]
[1761747465744,0.65205263,112750.0,112740.0,0.38675061]
[1761747465957,0.57665076,112750.0,112740.0,0.38675061]
[1761747466182,0.00104838,112750.0,112740.0,0.38675061]
[1761747467768,0.63890076,112750.0,112740.0,0.33740061]
[1761747468896,0.86378435,112750.0,112740.0,0.09781901]
[1761747469875,0.68640076,112750.0,112740.0,0.27521833]
[1761747470098,0.77621977,112750.0,112740.0,0.27521833]
[1761747470309,0.77621977,112750.0,112740.0,0.26721833]
[1761747470728,0.95360336,112750.0,112740.0,0.27321833]
[1761747471140,0.68640076,112750.0,112740.0,0.27321833]
[1761747471338,0.82404669,112750.0,112740.0,0.27321833]
[1761747471543,0.77654669,112750.0,112740.0,0.30605833]
[1761747472426,0.00104838,112750.0,112740.0,0.35540833]
[1761747473083,0.03292838,112750.0,112740.0,0.35540833]
[1761747473291,0.03292838,112750.0,112740.0,0.30605833]
[1761747474151,0.06329838,112750.0,112740.0,0.30605833]
[1761747475242,0.77654669,112750.0,112740.0,0.30605833]
[1761747475528,0.77654669,112750.0,112740.0,0.27321833]
[1761747475765,0.8663657,112750.0,112740.0,0.27321833]
[1761747475998,0.82404669,112750.0,112740.0,0.27321833]
[1761747476235,0.59251233,112750.0,112740.0,0.30605833]
[1761747476471,0.59251233,112750.0,112740.0,0.35540833]
[1761747476706,0.78591592,112750.0,112740.0,0.09581901]
[1761747477385,0.80193592,112750.0,112740.0,0.006]
[1761747478260,0.54942359,112750.0,112740.0,0.006]
[1761747478470,0.17739932,112740.0,112730.0,0.00250556]
[1761747478687,0.72926831,112740.0,112730.0,0.26973963]
[1761747478890,0.72926831,112740.0,112730.0,0.33490963]
[1761747479101,0.90666763,112740.0,112730.0,0.33490963]
[1761747479324,0.90666763,112740.0,112730.0,0.12516457]
[1761747479738,0.90666763,112740.0,112730.0,0.09232457]
[1761747479954,0.92268763,112740.0,112730.0,0.09232457]
[1761747480370,1.26268763,112740.0,112730.0,0.09232457]
[1761747480581,1.26268763,112740.0,112730.0,0.00250556]
[1761747480996,1.26268763,112740.0,112730.0,0.00350556]
[1761747481422,1.26268763,112740.0,112730.0,0.00650556]
[1761747482910,1.24666763,112740.0,112730.0,0.03934556]
[1761747483155,1.26268763,112740.0,112730.0,0.00650556]
[1761747483783,1.35250664,112740.0,112730.0,0.00650556]
[1761747484462,3.35250664,112740.0,112730.0,0.00650556]
[1761747485295,3.26268763,112740.0,112730.0,0.00650556]
[1761747485503,3.26268763,112740.0,112730.0,0.00550556]
[1761747485708,3.26268763,112740.0,112730.0,0.00250556]
[1761747486114,3.26268763,112740.0,112730.0,0.00450556]
[1761747488313,3.26268763,112740.0,112730.0,0.00250556]
[1761747488516,3.35119242,112740.0,112730.0,0.00250556]
[1761747489569,3.26268763,112740.0,112730.0,0.00250556]
[1761747490201,3.24666763,112740.0,112730.0,0.00250556]
[1761747492563,3.26268763,112740.0,112730.0,0.00250556]
[1761747494659,3.26268763,112740.0,112730.0,0.00450556]
[1761747498925,3.26268763,112740.0,112730.0,0.00250556]
[1761747499595,3.35250664,112740.0,112730.0,0.00250556]
[1761747500323,3.64232565,112740.0,112730.0,0.00250556]
[1761747500589,3.68731807,112740.0,112730.0,0.00250556]
[1761747501489,3.72703535,112740.0,112730.0,0.00250556]
[1761747502195,3.75216959,112740.0,112730.0,0.00250556]
[1761747502866,3.96216958,112740.0,112730.0,1e-08]
[1761747503092,0.7174308,112720.0,112710.0,0.0004]
[1761747503316,4.35836659,112720.0,112710.0,0.0004]
[1761747503591,4.40059786,112720.0,112710.0,0.0004]
[1761747503862,4.46547803,112720.0,112710.0,0.00082677]
[1761747504139,4.76435396,112720.0,112710.0,1e-08]
[1761747504361,4.73311276,112720.0,112710.0,1e-08]
[1761747504984,4.73411276,112720.0,112710.0,1e-08]
[1761747505395,4.73711276,112720.0,112710.0,1e-08]
[1761747505610,4.73311276,112720.0,112710.0,1e-08]
[1761747505823,4.68176725,112720.0,112710.0,1e-08]
[1761747506040,3.88369993,112720.0,112710.0,1e-08]
[1761747506468,3.68369993,112720.0,112710.0,1e-08]
[1761747506689,3.37630834,112720.0,112710.0,1e-08]
[1761747507104,3.37730834,112720.0,112710.0,1e-08]
[1761747508205,3.28748933,112720.0,112710.0,1e-08]
[1761747508417,3.37630834,112720.0,112710.0,1e-08]
[1761747508842,3.37130834,112720.0,112710.0,1e-08]
[1761747509495,3.37130834,112720.0,112710.0,0.00100001]
[1761747510158,2.56824102,112720.0,112710.0,0.00100001]
[1761747510367,3.26271911,112720.0,112710.0,0.00100001]
[1761747510793,3.46271911,112720.0,112710.0,0.00100001]
[1761747511020,4.28455697,112720.0,112710.0,0.00100001]
[1761747511248,2.87435428,112720.0,112710.0,0.00100001]
[1761747511464,4.39067076,112720.0,112710.0,0.00100001]
[1761747511680,4.41413354,112720.0,112710.0,0.00100001]
[1761747511889,3.70088523,112720.0,112710.0,0.00100001]
[1761747512318,4.41413354,112720.0,112710.0,0.00100001]
[1761747512540,4.46547905,112720.0,112710.0,0.00100001]
[1761747512969,4.44034481,112720.0,112710.0,0.00100001]
[1761747513644,4.41413354,112720.0,112710.0,0.00100001]
[1761747514080,4.44034481,112720.0,112710.0,0.00100001]
[1761747514338,4.46547905,112720.0,112710.0,1e-08]
[1761747514580,4.75892905,112720.0,112710.0,1e-08]
[1761747515211,0.51744654,112710.0,112700.0,0.004]
[1761747515415,3.43285766,112710.0,112700.0,0.004]
[1761747516249,3.3936844,112710.0,112700.0,0.004]
[1761747516463,3.3936844,112710.0,112700.0,0.00448555]
[1761747516874,3.3936844,112710.0,112700.0,0.00648555]
[1761747517080,3.46089939,112710.0,112700.0,0.00648555]
[1761747518980,3.3936844,112710.0,112700.0,0.00648555]
[1761747519485,3.48350341,112710.0,112700.0,0.00648555]
[1761747520245,3.73070341,112710.0,112700.0,0.00648555]
[1761747520750,3.75691468,112710.0,112700.0,0.00648555]
[1761747520998,3.75691468,112710.0,112700.0,0.00669898]
[1761747521265,3.78204892,112710.0,112700.0,0.00669898]
[1761747521518,3.82180863,112710.0,112700.0,0.00669898]
[1761747522250,0.89075785,112670.0,112660.0,0.0044]
[1761747522459,0.96802111,112670.0,112660.0,0.00454552]
[1761747522908,0.92884785,112670.0,112660.0,0.00454552]
[1761747523610,0.92884785,112670.0,112660.0,0.00854552]
[1761747524111,0.92884785,112670.0,112660.0,0.04134552]
[1761747524378,0.92884785,112670.0,112660.0,0.00854552]
[1761747524379,3.37468686,112670.0,112660.0,0.00854552]
[1761747524860,3.26884785,112670.0,112660.0,0.00854552]
[1761747525088,3.26884785,112670.0,112660.0,0.04134552]
[1761747525719,3.26884785,112670.0,112660.0,0.08290552]
[1761747525934,3.26884785,112670.0,112660.0,0.03734552]
[1761747526154,3.26858083,112670.0,112660.0,0.08290552]
[1761747526622,3.28460083,112670.0,112660.0,0.03934552]
[1761747526798,3.28460083,112670.0,112660.0,0.04234552]
[1761747527018,3.29389697,112670.0,112660.0,0.04234552]
[1761747527635,1.29389697,112670.0,112660.0,0.04234552]
[1761747527984,1.29389697,112670.0,112660.0,0.04319959]
[1761747528396,1.27787697,112670.0,112660.0,0.04319959]
[1761747528604,0.21089951,112690.0,112660.0,0.35610389]
[1761747528605,0.90812782,112690.0,112660.0,0.35610389]
[1761747528805,0.90812782,112690.0,112680.0,0.21029378]
[1761747528806,0.01879846,112690.0,112680.0,0.21029378]
[1761747529036,2.17746297,112700.0,112680.0,0.30011253]
[1761747529228,2.17746297,112700.0,112680.0,0.34567279]
[1761747529229,0.00949034,112690.0,112680.0,0.34567279]
[1761747529574,0.17749378,112680.0,112670.0,0.02667391]
[1761747529749,0.17749378,112680.0,112660.0,0.00454552]
[1761747529750,0.17750954,112670.0,112660.0,0.00454552]
[1761747529983,0.17750954,112670.0,112660.0,0.35024982]
[1761747529984,0.71324831,112670.0,112660.0,0.35024982]
[1761747530238,0.890743,112680.0,112660.0,0.35024982]
[1761747530444,0.890743,112680.0,112670.0,0.10987]
[1761747530866,0.17750954,112670.0,112660.0,0.13992453]
[1761747531081,0.91282785,112670.0,112660.0,0.13992453]
[1761747531286,0.91282785,112670.0,112660.0,0.17272453]
[1761747531951,0.92884785,112670.0,112660.0,0.12716453]
[1761747532210,0.91282785,112670.0,112660.0,0.17272453]
[1761747532629,0.91282785,112670.0,112660.0,0.17772453]
[1761747533554,1.3283173,112670.0,112660.0,0.00954552]
[1761747533796,1.23849829,112670.0,112660.0,0.00454552]
[1761747534325,3.25734416,112670.0,112660.0,0.00854552]
[1761747534570,3.25734416,112670.0,112660.0,0.00954552]
[1761747534857,3.25734416,112670.0,112660.0,0.01039959]
[1761747535116,4.15362575,112670.0,112660.0,1e-08]
[1761747535386,0.00887862,112630.0,112600.0,0.004133]
[1761747535635,3.6877436,112610.0,112600.0,0.00427761]
[1761747535897,0.91705974,112610.0,112600.0,0.13965662]
[1761747536170,0.57705974,112610.0,112600.0,0.16745662]
[1761747536460,0.57705974,112610.0,112600.0,0.34507651]
[1761747536808,2.17758867,112620.0,112600.0,0.0328]
[1761747536979,0.5648312,112630.0,112600.0,0.3002389]
[1761747536980,0.57705974,112610.0,112600.0,0.3002389]
[1761747537234,0.57705974,112610.0,112600.0,0.08981901]
[1761747537480,0.77141428,112610.0,112590.0,0.03201307]
[1761747537723,0.77141428,112610.0,112600.0,0.006]
[1761747537981,2.77141428,112610.0,112600.0,0.006]
[1761747538220,3.20123329,112610.0,112600.0,0.006]
[1761747538469,3.21798329,112610.0,112600.0,0.006]
[1761747539437,2.93380974,112610.0,112600.0,0.006]
[1761747539703,0.34,112610.0,112600.0,0.07936]
[1761747539902,0.001,112610.0,112600.0,0.3467989]
[1761747540115,0.17860412,112610.0,112600.0,0.16817901]
[1761747540322,0.75466386,112610.0,112600.0,0.16817901]
[1761747540537,0.26742313,112610.0,112600.0,0.12261901]
[1761747540747,0.17860412,112610.0,112600.0,0.16817901]
[1761747540962,0.17860412,112610.0,112600.0,0.12261901]
[1761747540963,0.17760412,112610.0,112600.0,0.12261901]
[1761747541179,0.17761989,112600.0,112590.0,0.03249909]
[1761747541395,0.53436989,112600.0,112590.0,0.00098909]
[1761747541614,1.18430203,112600.0,112590.0,0.0024849]
[1761747541833,1.18430203,112600.0,112590.0,0.0352849]
[1761747542048,1.18430203,112600.0,112590.0,0.0024849]
[1761747542272,1.18430203,112600.0,112590.0,0.0352849]
[1761747542904,1.18430203,112600.0,112590.0,0.0024849]
[1761747543129,1.19350874,112600.0,112590.0,0.0024849]
[1761747543346,1.21025874,112600.0,112590.0,0.0024849]
[1761747543772,1.21025874,112600.0,112590.0,0.0034849]
[1761747544190,1.19350874,112600.0,112590.0,0.0044849]
[1761747544467,1.21025874,112600.0,112590.0,0.0044849]
[1761747545745,0.633199,112600.0,112590.0,0.0044849]
[1761747545962,1.21025874,112600.0,112590.0,0.0044849]
[1761747546993,1.21025874,112600.0,112590.0,0.0034849]
[1761747547200,1.21025874,112600.0,112590.0,0.0024849]
[1761747547413,1.21225874,112600.0,112590.0,0.0024849]
[1761747549342,1.19550874,112600.0,112590.0,0.0024849]
[1761747549574,3.21225874,112600.0,112590.0,0.0024849]
[1761747549798,3.87913749,112600.0,112590.0,0.0024849]
[1761747550680,3.30207775,112600.0,112590.0,0.0024849]
[1761747550895,3.22920535,112600.0,112590.0,0.0024849]
[1761747551078,3.13938634,112600.0,112590.0,0.0024849]
[1761747551318,3.80626509,112600.0,112590.0,0.0024849]
[1761747551533,3.22920535,112600.0,112590.0,0.0024849]
[1761747551746,3.31902436,112600.0,112590.0,0.0024849]
[1761747552861,3.22920535,112600.0,112590.0,0.0024849]
[1761747553522,3.12263634,112600.0,112590.0,0.0335049]
[1761747553742,0.35120671,112600.0,112590.0,0.1121049]
[1761747553959,0.1888266,112600.0,112590.0,0.1121049]
[1761747554169,0.002,112600.0,112590.0,0.99280159]
[1761747554380,0.002,112600.0,112590.0,0.41574185]
[1761747554591,0.002,112600.0,112590.0,1.0194947]
[1761747554807,0.002,112600.0,112590.0,0.44243496]
[1761747556318,0.79496547,112630.0,112610.0,0.17759593]
[1761747556532,1.13496547,112630.0,112620.0,0.06015]
[1761747556739,1.22478448,112630.0,112620.0,0.06100452]
[1761747557615,1.24153448,112630.0,112620.0,0.06100452]
[1761747557825,1.22478448,112630.0,112620.0,0.06100452]
[1761747558037,1.22578448,112630.0,112620.0,0.06100452]
[1761747558525,1.03933047,112630.0,112620.0,0.06100452]
[1761747558740,1.12708404,112630.0,112620.0,0.06100452]
[1761747559172,1.14383404,112630.0,112620.0,0.06100452]
[1761747560256,0.001,112630.0,112620.0,0.28806287]
[1761747560465,0.001,112630.0,112620.0,0.41406416]
[1761747560680,0.001,112630.0,112620.0,0.9911239]
[1761747560890,0.001,112630.0,112620.0,0.41406416]
[1761747561542,0.76346151,112660.0,112640.0,0.1775493]
[1761747561756,0.77282283,112660.0,112650.0,0.06015]
[1761747561957,0.17754105,112650.0,112640.0,0.16841901]
[1761747562283,0.17754105,112650.0,112640.0,0.16884619]
[1761747562484,0.26736006,112650.0,112640.0,0.19986619]
[1761747562697,0.8444198,112650.0,112640.0,0.19991457]
[1761747563096,0.8444198,112650.0,112640.0,0.37747138]
[1761747563748,0.77382283,112660.0,112640.0,0.37847138]
[1761747563992,1.11282283,112660.0,112650.0,0.08049]
[1761747564137,1.11282283,112660.0,112650.0,0.08070357]
[1761747564387,0.53576309,112660.0,112650.0,0.08070357]
[1761747564566,1.11282283,112660.0,112650.0,0.08070357]
[1761747565638,0.53576309,112660.0,112650.0,0.25824462]
[1761747565848,0.52688661,112660.0,112650.0,0.25824462]
[1761747566050,0.001,112660.0,112650.0,0.34806363]
[1761747566340,0.001,112660.0,112650.0,0.43489168]
[1761747566547,0.001,112660.0,112650.0,0.41092672]
[1761747566755,0.51750994,112670.0,112650.0,0.41092672]
[1761747566756,1.09456968,112670.0,112650.0,0.41092672]
[1761747566965,0.51750994,112670.0,112660.0,0.16930901]
[1761747567132,1.09456968,112670.0,112660.0,0.16930901]
[1761747567376,1.18438869,112670.0,112660.0,0.16930901]
[1761747567593,1.20645869,112670.0,112660.0,0.16930901]
[1761747568252,1.20645869,112670.0,112660.0,0.11983901]
[1761747568501,0.53957994,112670.0,112660.0,0.16930901]
[1761747568682,1.11663968,112670.0,112660.0,0.16930901]
[1761747568891,1.13438968,112670.0,112660.0,0.11983901]
[1761747569061,1.11763968,112670.0,112660.0,0.16930901]
[1761747569264,0.54057994,112670.0,112660.0,0.16930901]
[1761747569471,1.11763968,112670.0,112660.0,0.16930901]
[1761747569670,1.21660659,112670.0,112660.0,0.16930901]
[1761747571745,1.19453659,112670.0,112660.0,0.16930901]
[1761747572397,1.19453659,112670.0,112660.0,0.3468343]
[1761747572398,0.92720764,112670.0,112660.0,0.3468343]
[1761747572879,0.75556928,112670.0,112660.0,0.3468343]
[1761747573359,0.001,112670.0,112660.0,0.38301658]
[1761747574436,0.18645345,112690.0,112670.0,0.17749992]
[1761747574641,0.52645345,112690.0,112680.0,0.06015]
[1761747574847,0.52645345,112690.0,112680.0,0.10962]
[1761747575054,0.54551616,112690.0,112680.0,0.10962]
[1761747575266,1.13191551,112690.0,112680.0,0.10962]
[1761747575906,1.13191551,112690.0,112680.0,0.10966838]
[1761747576289,1.1138528,112690.0,112680.0,0.10966838]
[1761747577966,0.18781764,112690.0,112680.0,0.37698117]
[1761747578693,0.01033961,112690.0,112680.0,0.37698117]
[1761747578921,0.18781764,112690.0,112680.0,0.37698117]
[1761747579349,0.18781764,112690.0,112680.0,0.19948739]
[1761747579873,0.87144639,112690.0,112680.0,0.15001739]